[Event "MČR v rapid šachu družstev 2019"]
[Site "Teplice, Czech Republic"]
[Date "2019.09.15"]
[Round "5.26"]
[White "Sott, Pavel"]
[Black "Vokoun, Jan"]
[Result "1/2-1/2"]
[TimeControl "15 min. + 5s"]
[WhiteElo "2179"]
[BlackElo "2119"]

1. e4 {[%clk 00:15:07]} {[%emt 00:00:04]} e5 {[%clk 00:15:06]} {[%emt
00:00:03]} 2. Nf3 {[%clk 00:15:08]} {[%emt 00:00:04]} Nc6 {[%clk 00:15:09]}
{[%emt 00:00:01]} 3. Bc4 {[%clk 00:15:10]} {[%emt 00:00:03]} Bc5 {[%clk
00:15:07]} {[%emt 00:00:09]} 4. c3 {[%clk 00:15:07]} {[%emt 00:00:07]} Nf6
{[%clk 00:14:36]} {[%emt 00:00:36]} 5. d4 {[%clk 00:15:06]} {[%emt 00:00:07]}
exd4 {[%clk 00:14:40]} {[%emt 00:00:01]} 6. cxd4 {[%clk 00:15:09]} {[%emt
00:00:02]} Bb4+ {[%clk 00:14:41]} {[%emt 00:00:04]} 7. Nc3 {[%clk 00:15:13]} d5
{[%clk 00:14:35]} {[%emt 00:00:11]} 8. exd5 {[%clk 00:15:03]} {[%emt 00:00:14]}
Nxd5 {[%clk 00:14:39]} {[%emt 00:00:02]} 9. O-O {[%clk 00:14:58]} {[%emt
00:00:10]} Nxc3 {[%clk 00:14:18]} {[%emt 00:00:26]} 10. bxc3 {[%clk 00:15:01]}
{[%emt 00:00:02]} Be7 {[%clk 00:14:22]} 11. Re1 {[%clk 00:14:36]} {[%emt
00:00:30]} O-O {[%clk 00:14:23]} {[%emt 00:00:04]} 12. d5 {[%clk 00:14:31]}
{[%emt 00:00:09]} Na5 {[%clk 00:14:18]} {[%emt 00:00:10]} 13. Bd3 {[%clk
00:14:32]} {[%emt 00:00:04]} Bg4 {[%clk 00:13:15]} {[%emt 00:01:09]} 14. c4
{[%clk 00:14:07]} {[%emt 00:00:30]} b6 {[%clk 00:12:47]} {[%emt 00:00:33]} 15.
h3 {[%clk 00:12:51]} {[%emt 00:01:20]} Bxf3 {[%clk 00:12:32]} {[%emt 00:00:20]}
16. Qxf3 {[%clk 00:12:53]} {[%emt 00:00:03]} Bf6 {[%clk 00:12:36]} {[%emt
00:00:01]} 17. Rb1 {[%clk 00:12:53]} {[%emt 00:00:05]} Nb7 {[%clk 00:12:39]}
{[%emt 00:00:02]} 18. Ba3 {[%clk 00:12:16]} {[%emt 00:00:42]} Nd6 {[%clk
00:12:26]} {[%emt 00:00:19]} 19. c5 {[%clk 00:12:08]} {[%emt 00:00:13]} bxc5
{[%clk 00:12:29]} {[%emt 00:00:01]} 20. Bxc5 {[%clk 00:12:12]} {[%emt
00:00:02]} g6 {[%clk 00:11:52]} {[%emt 00:00:42]} 21. Re2 {[%clk 00:11:58]}
{[%emt 00:00:19]} Re8 {[%clk 00:11:24]} {[%emt 00:00:32]} 22. Rbe1 {[%clk
00:11:21]} {[%emt 00:00:43]} Rxe2 {[%clk 00:11:26]} {[%emt 00:00:03]} 23. Rxe2
{[%clk 00:11:22]} {[%emt 00:00:03]} Bg7 {[%clk 00:11:02]} {[%emt 00:00:29]} 24.
g3 {[%clk 00:11:19]} {[%emt 00:00:08]} a5 {[%clk 00:10:34]} {[%emt 00:00:33]}
25. h4 {[%clk 00:11:16]} {[%emt 00:00:09]} h5 {[%clk 00:10:04]} {[%emt
00:00:35]} 26. Be3 {[%clk 00:10:07]} {[%emt 00:01:14]} Qd7 {[%clk 00:09:38]}
{[%emt 00:00:31]} 27. Bg5 {[%clk 00:09:42]} {[%emt 00:00:28]} Re8 {[%clk
00:09:03]} {[%emt 00:00:41]} 28. Bf4 {[%clk 00:09:24]} {[%emt 00:00:23]} Rxe2
{[%clk 00:08:49]} {[%emt 00:00:18]} 29. Qxe2 {[%clk 00:09:22]} {[%emt
00:00:07]} Qa4 {[%clk 00:08:17]} {[%emt 00:00:38]} 30. Qc2 {[%clk 00:09:08]}
{[%emt 00:00:19]} Qd4 {[%clk 00:06:33]} {[%emt 00:01:49]} 31. Qxc7 {[%clk
00:08:58]} {[%emt 00:00:15]} Qxd3 {[%clk 00:06:37]} {[%emt 00:00:01]} 32. Qxd6
{[%clk 00:08:52]} {[%emt 00:00:11]} Qb1+ {[%clk 00:06:29]} {[%emt 00:00:13]} 33.
Kg2 {[%clk 00:08:50]} {[%emt 00:00:08]} Qxa2 {[%clk 00:06:33]} {[%emt
00:00:01]} 34. Qb8+ {[%clk 00:08:21]} {[%emt 00:00:34]} Kh7 {[%clk 00:06:30]}
{[%emt 00:00:07]} 35. Qb7 {[%clk 00:08:18]} {[%emt 00:00:09]} a4 {[%clk
00:05:25]} {[%emt 00:01:10]} 36. Qxf7 {[%clk 00:07:34]} {[%emt 00:00:48]} Qb2
{[%clk 00:05:26]} {[%emt 00:00:05]} 37. d6 {[%clk 00:07:17]} {[%emt 00:00:22]}
a3 {[%clk 00:03:57]} {[%emt 00:01:33]} 38. d7 {[%clk 00:06:52]} {[%emt
00:00:31]} Qb7+ {[%clk 00:03:50]} {[%emt 00:00:12]} 39. Kh2 {[%clk 00:06:21]}
{[%emt 00:00:35]} Qf3 {[%clk 00:02:57]} {[%emt 00:00:58]} 40. Qa2 {[%clk
00:05:46]} {[%emt 00:00:40]} Qd3 {[%clk 00:01:57]} {[%emt 00:01:05]} 41. Qd2
{[%clk 00:04:58]} {[%emt 00:00:54]} Qxd2 {[%clk 00:01:57]} {[%emt 00:00:05]} 42.
Bxd2 {[%clk 00:05:02]} a2 {[%clk 00:01:59]} {[%emt 00:00:02]} 43. d8=Q {[%clk
00:04:56]} {[%emt 00:00:09]} a1=Q {[%clk 00:02:00]} {[%emt 00:00:06]} 44. Be3
{[%clk 00:04:51]} {[%emt 00:00:10]} Qe5 {[%clk 00:01:57]} {[%emt 00:00:08]} 45.
Qd7 {[%clk 00:04:41]} {[%emt 00:00:15]} Qf6 {[%clk 00:01:41]} {[%emt 00:00:21]}
46. Qb7 {[%clk 00:04:39]} {[%emt 00:00:06]} Kg8 {[%clk 00:01:31]} {[%emt
00:00:16]} 47. Kg2 {[%clk 00:04:40]} {[%emt 00:00:04]} Qe6 {[%clk 00:01:18]}
{[%emt 00:00:15]} 48. Qa8+ {[%clk 00:04:38]} {[%emt 00:00:10]} Kh7 {[%clk
00:01:17]} {[%emt 00:00:07]} 49. Bg5 {[%clk 00:04:40]} {[%emt 00:00:02]} Qe5
{[%clk 00:01:14]} {[%emt 00:00:09]} 50. Qc6 {[%clk 00:04:40]} {[%emt 00:00:05]}
Qf5 {[%clk 00:01:07]} {[%emt 00:00:12]} 51. Qf3 {[%clk 00:04:39]} {[%emt
00:00:06]} Qxf3+ {[%clk 00:01:07]} {[%emt 00:00:05]} 52. Kxf3 {[%clk 00:04:42]}
{[%emt 00:00:01]} Kg8 {[%clk 00:01:04]} {[%emt 00:00:08]} 53. Ke4 {[%clk
00:04:45]} {[%emt 00:00:02]} Kf7 {[%clk 00:01:08]} {[%emt 00:00:01]} 54. Bf4
{[%clk 00:04:49]} {[%emt 00:00:02]} Ke6 {[%clk 00:01:09]} {[%emt 00:00:03]} 55.
f3 {[%clk 00:04:52]} {[%emt 00:00:02]} Bf6 {[%clk 00:01:10]} {[%emt 00:00:03]}
56. Bg5 {[%clk 00:04:54]} {[%emt 00:00:04]} Bb2 {[%clk 00:01:11]} {[%emt
00:00:04]} 57. g4 {[%clk 00:04:57]} {[%emt 00:00:03]} hxg4 {[%clk 00:01:07]}
{[%emt 00:00:09]} 58. fxg4 {[%clk 00:05:00]} {[%emt 00:00:02]} Bc3 {[%clk
00:01:08]} {[%emt 00:00:03]} 59. Be3 {[%clk 00:05:01]} {[%emt 00:00:05]} Be5
{[%clk 00:01:09]} {[%emt 00:00:03]} 60. Bd4 {[%clk 00:05:03]} {[%emt 00:00:04]}
Bg3 {[%clk 00:01:01]} {[%emt 00:00:12]} 61. h5 {[%clk 00:05:04]} {[%emt
00:00:04]} gxh5 {[%clk 00:01:05]} {[%emt 00:00:02]} 62. gxh5 {[%clk 00:05:08]}
{[%emt 00:00:01]} Kf7 {[%clk 00:00:43]} {[%emt 00:00:27]} 63. Kf5 {[%clk
00:05:12]} Kg8 {[%clk 00:00:41]} {[%emt 00:00:07]} 64. Kg6 {[%clk 00:05:03]}
{[%emt 00:00:13]} Bf4 {[%clk 00:00:45]} {[%emt 00:00:01]} 65. Bf6 {[%clk
00:05:03]} {[%emt 00:00:06]} Be3 {[%clk 00:00:43]} {[%emt 00:00:06]} 66. Bg7
{[%clk 00:05:06]} {[%emt 00:00:02]} Bd2 {[%clk 00:00:43]} {[%emt 00:00:05]} 67.
Bh6 {[%clk 00:04:50]} {[%emt 00:00:21]} Bxh6 {[%clk 00:00:39]} {[%emt
00:00:10]} 68. Kxh6 {[%emt 00:00:01]} Kh8 {[%emt 00:00:01]} 1/2-1/2

[Event "MČR v rapid šachu družstev 2019"]
[Site "Teplice, Czech Republic"]
[Date "2019.09.15"]
[Round "5.27"]
[White "Postupa, Martin"]
[Black "Kupka, Frantisek"]
[Result "1-0"]
[TimeControl "15 min. + 5s"]
[WhiteElo "1950"]
[BlackElo "2061"]

1. e4 {[%clk 00:15:09]} {[%emt 00:48:01]} d6 {[%clk 00:15:06]} {[%emt
00:00:05]} 2. Nc3 {[%clk 00:15:12]} {[%emt 00:00:01]} Nf6 {[%clk 00:15:06]}
{[%emt 00:00:06]} 3. h3 {[%clk 00:15:16]} e5 {[%clk 00:14:56]} {[%emt
00:00:15]} 4. g3 {[%clk 00:15:19]} {[%emt 00:00:02]} d5 {[%clk 00:14:27]}
{[%emt 00:00:34]} 5. exd5 {[%clk 00:15:20]} {[%emt 00:00:05]} Nxd5 {[%clk
00:14:30]} {[%emt 00:00:01]} 6. Bg2 {[%clk 00:15:23]} {[%emt 00:00:02]} Nxc3
{[%clk 00:14:28]} {[%emt 00:00:07]} 7. bxc3 {[%clk 00:15:27]} {[%emt 00:00:02]}
Bd6 {[%clk 00:13:58]} {[%emt 00:00:34]} 8. Ne2 {[%clk 00:15:26]} {[%emt
00:00:06]} O-O {[%clk 00:13:58]} {[%emt 00:00:06]} 9. O-O {[%clk 00:15:29]} c6
{[%clk 00:13:57]} {[%emt 00:00:06]} 10. d4 {[%clk 00:15:31]} {[%emt 00:00:02]}
Be6 {[%clk 00:13:02]} {[%emt 00:01:01]} 11. Rb1 {[%clk 00:15:29]} {[%emt
00:00:08]} Qc7 {[%clk 00:12:57]} {[%emt 00:00:09]} 12. a3 {[%clk 00:14:45]}
{[%emt 00:00:49]} Nd7 {[%clk 00:12:55]} {[%emt 00:00:07]} 13. Qd3 {[%clk
00:14:23]} {[%emt 00:00:26]} Nb6 {[%clk 00:12:45]} {[%emt 00:00:16]} 14. Re1
{[%clk 00:13:17]} {[%emt 00:01:11]} Rad8 {[%clk 00:12:13]} {[%emt 00:00:37]} 15.
Kh2 {[%clk 00:12:41]} {[%emt 00:00:41]} Bc4 {[%clk 00:11:28]} {[%emt 00:00:50]}
16. Qd1 {[%clk 00:12:37]} {[%emt 00:00:09]} Rfe8 {[%clk 00:10:44]} {[%emt
00:00:49]} 17. Ng1 {[%clk 00:11:52]} {[%emt 00:00:50]} Bd5 {[%clk 00:07:08]}
{[%emt 00:03:41]} 18. Bf1 {[%clk 00:11:43]} {[%emt 00:00:14]} Nc4 {[%clk
00:06:41]} {[%emt 00:00:32]} 19. Ra1 {[%clk 00:11:31]} {[%emt 00:00:17]} h6
{[%clk 00:05:36]} {[%emt 00:01:11]} 20. Qg4 {[%clk 00:10:50]} {[%emt 00:00:44]}
Be6 {[%clk 00:05:29]} {[%emt 00:00:13]} 21. Qe4 {[%clk 00:10:24]} {[%emt
00:00:31]} f5 {[%clk 00:05:22]} {[%emt 00:00:11]} 22. Qe2 {[%clk 00:10:00]}
{[%emt 00:00:30]} Qf7 {[%clk 00:04:22]} {[%emt 00:01:06]} 23. Bg2 {[%clk
00:09:44]} {[%emt 00:00:21]} e4 {[%clk 00:04:10]} {[%emt 00:00:17]} 24. h4
{[%clk 00:09:34]} {[%emt 00:00:15]} Qf6 {[%clk 00:03:56]} {[%emt 00:00:18]} 25.
h5 {[%clk 00:08:41]} {[%emt 00:00:58]} Bf7 {[%clk 00:03:31]} {[%emt 00:00:30]}
26. Nh3 {[%clk 00:08:37]} {[%emt 00:00:08]} Qh4 {[%clk 00:02:56]} {[%emt
00:00:40]} 27. Kg1 {[%clk 00:07:12]} {[%emt 00:01:30]} Qxh5 {[%clk 00:02:56]}
{[%emt 00:00:06]} 28. Qxh5 {[%clk 00:07:05]} {[%emt 00:00:12]} Bxh5 {[%clk
00:02:59]} {[%emt 00:00:03]} 29. Rb1 {[%clk 00:07:08]} {[%emt 00:00:01]} b6
{[%clk 00:02:58]} {[%emt 00:00:06]} 30. a4 {[%clk 00:06:53]} {[%emt 00:00:20]}
Bc7 {[%clk 00:02:53]} {[%emt 00:00:11]} 31. Bf4 {[%clk 00:06:48]} {[%emt
00:00:09]} Bxf4 {[%clk 00:02:37]} {[%emt 00:00:22]} 32. Nxf4 {[%clk 00:06:51]}
{[%emt 00:00:01]} Bf7 {[%clk 00:02:39]} {[%emt 00:00:03]} 33. Bh3 {[%clk
00:05:31]} {[%emt 00:01:24]} Nd6 {[%clk 00:02:22]} {[%emt 00:00:23]} 34. a5
{[%clk 00:05:23]} {[%emt 00:00:13]} b5 {[%clk 00:02:17]} {[%emt 00:00:10]} 35.
g4 {[%clk 00:04:46]} {[%emt 00:00:41]} g5 {[%clk 00:02:12]} {[%emt 00:00:11]}
36. Ne2 {[%clk 00:04:37]} {[%emt 00:00:14]} f4 {[%clk 00:02:10]} {[%emt
00:00:07]} 37. Nc1 {[%clk 00:04:33]} {[%emt 00:00:09]} Nc4 {[%clk 00:02:05]}
{[%emt 00:00:10]} 38. Ra1 {[%clk 00:04:26]} {[%emt 00:00:12]} a6 {[%clk
00:01:55]} {[%emt 00:00:15]} 39. Nb3 {[%clk 00:04:25]} {[%emt 00:00:07]} Bd5
{[%clk 00:01:45]} {[%emt 00:00:14]} 40. Nc5 {[%clk 00:04:27]} {[%emt 00:00:03]}
Ra8 {[%clk 00:01:42]} {[%emt 00:00:08]} 41. Nd7 {[%clk 00:04:15]} {[%emt
00:00:17]} Kf7 {[%clk 00:01:39]} {[%emt 00:00:08]} 42. Bf1 {[%clk 00:04:12]}
{[%emt 00:00:08]} Nd2 {[%clk 00:00:46]} {[%emt 00:00:59]} 43. Bg2 {[%clk
00:04:03]} {[%emt 00:00:13]} Re7 {[%clk 00:00:26]} {[%emt 00:00:25]} 44. Ne5+
{[%clk 00:03:45]} {[%emt 00:00:23]} Rxe5 {[%clk 00:00:23]} {[%emt 00:00:08]} 45.
dxe5 {[%clk 00:03:48]} {[%emt 00:00:02]} Re8 {[%clk 00:00:24]} {[%emt
00:00:03]} 46. Rad1 {[%clk 00:03:46]} {[%emt 00:00:07]} Nc4 {[%clk 00:00:11]}
{[%emt 00:00:20]} 47. Bxe4 {[%clk 00:03:47]} {[%emt 00:00:03]} Bxe4 {[%clk
00:00:09]} {[%emt 00:00:07]} 48. Rxe4 {[%clk 00:03:47]} {[%emt 00:00:04]} Rxe5
{[%clk 00:00:11]} {[%emt 00:00:04]} 49. Rxe5 {[%clk 00:03:18]} {[%emt
00:00:34]} Nxe5 {[%clk 00:00:15]} {[%emt 00:00:01]} 50. Rd8 {[%clk 00:03:22]}
Nc4 {[%clk 00:00:14]} {[%emt 00:00:07]} 51. Ra8 {[%clk 00:03:22]} {[%emt
00:00:05]} Nxa5 {[%clk 00:00:17]} {[%emt 00:00:02]} 52. Rxa6 {[%clk 00:03:26]}
{[%emt 00:00:01]} Nc4 {[%clk 00:00:19]} {[%emt 00:00:03]} 53. Rxc6 {[%clk
00:03:29]} {[%emt 00:00:02]} Ne5 {[%clk 00:00:22]} {[%emt 00:00:03]} 54. Rxh6
{[%clk 00:03:30]} {[%emt 00:00:03]} Nxg4 {[%clk 00:00:24]} {[%emt 00:00:03]} 55.
Rb6 {[%clk 00:03:30]} {[%emt 00:00:06]} Nf6 {[%clk 00:00:17]} {[%emt 00:00:08]}
56. Rxb5 {[%clk 00:03:33]} {[%emt 00:00:05]} Ne4 {[%clk 00:00:20]} {[%emt
00:00:02]} 57. f3 {[%clk 00:03:31]} {[%emt 00:00:07]} Nxc3 {[%clk 00:00:22]}
{[%emt 00:00:03]} 58. Rxg5 {[%clk 00:03:31]} {[%emt 00:00:04]} Kf6 {[%clk
00:00:24]} {[%emt 00:00:04]} 59. Rc5 {[%clk 00:03:35]} {[%emt 00:00:02]} Ne2+
{[%clk 00:00:27]} {[%emt 00:00:02]} 60. Kf2 {[%clk 00:03:39]} Nd4 {[%clk
00:00:30]} {[%emt 00:00:02]} 61. c3 {[%clk 00:03:38]} {[%emt 00:00:06]} Nb3
{[%clk 00:00:32]} {[%emt 00:00:04]} 62. Rb5 {[%clk 00:03:40]} {[%emt 00:00:02]}
Nd2 {[%clk 00:00:34]} {[%emt 00:00:02]} 63. Ke2 {[%clk 00:03:43]} {[%emt
00:00:02]} Nc4 {[%clk 00:00:38]} {[%emt 00:00:02]} 64. Rb4 {[%clk 00:03:43]}
{[%emt 00:00:05]} 1-0

[Event "MČR v rapid šachu družstev 2019"]
[Site "Teplice, Czech Republic"]
[Date "2019.09.15"]
[Round "5.28"]
[White "Janocko, Petr"]
[Black "Krouzel, Jaroslav"]
[Result "1/2-1/2"]
[TimeControl "15 min. + 5s"]
[WhiteElo "2071"]
[BlackElo "2068"]

1. d4 {[%clk 00:15:06]} {[%emt 00:00:03]} f5 {[%clk 00:15:09]} {[%emt
00:00:03]} 2. c4 {[%clk 00:15:10]} Nf6 {[%clk 00:15:10]} {[%emt 00:00:03]} 3.
Nc3 {[%clk 00:15:13]} {[%emt 00:00:03]} d6 {[%clk 00:15:14]} 4. Nf3 {[%clk
00:15:15]} {[%emt 00:00:02]} g6 {[%clk 00:15:18]} 5. g3 {[%clk 00:15:19]}
{[%emt 00:00:04]} Bg7 {[%clk 00:15:22]} 6. Bg2 {[%clk 00:15:22]} {[%emt
00:00:02]} O-O {[%clk 00:15:25]} {[%emt 00:00:02]} 7. d5 {[%clk 00:15:22]}
{[%emt 00:00:05]} a5 {[%clk 00:15:27]} {[%emt 00:00:02]} 8. O-O {[%clk
00:15:23]} {[%emt 00:00:04]} Na6 {[%clk 00:15:31]} {[%emt 00:00:01]} 9. Nd4
{[%clk 00:15:25]} {[%emt 00:00:03]} Nc5 {[%clk 00:15:27]} {[%emt 00:00:09]} 10.
Nb3 {[%clk 00:14:52]} {[%emt 00:00:37]} Nxb3 {[%clk 00:15:09]} {[%emt
00:00:23]} 11. axb3 {[%clk 00:14:48]} {[%emt 00:00:10]} Bd7 {[%clk 00:15:00]}
{[%emt 00:00:13]} 12. Qc2 {[%clk 00:14:49]} {[%emt 00:00:05]} Qe8 {[%clk
00:13:43]} {[%emt 00:01:22]} 13. Bd2 {[%clk 00:14:17]} {[%emt 00:00:37]} Qf7
{[%clk 00:13:25]} {[%emt 00:00:24]} 14. e3 {[%clk 00:14:08]} {[%emt 00:00:14]}
b6 {[%clk 00:13:21]} {[%emt 00:00:08]} 15. h3 {[%clk 00:14:00]} {[%emt
00:00:13]} Rae8 {[%clk 00:13:23]} {[%emt 00:00:03]} 16. Nb5 {[%clk 00:13:55]}
{[%emt 00:00:11]} Bxb5 {[%clk 00:13:15]} {[%emt 00:00:12]} 17. cxb5 {[%clk
00:13:59]} {[%emt 00:00:01]} Rc8 {[%clk 00:13:18]} {[%emt 00:00:02]} 18. b4
{[%clk 00:14:02]} {[%emt 00:00:02]} axb4 {[%clk 00:13:18]} {[%emt 00:00:05]} 19.
Ra7 {[%clk 00:14:01]} {[%emt 00:00:06]} Nxd5 {[%clk 00:12:31]} {[%emt
00:00:52]} 20. e4 {[%clk 00:13:47]} {[%emt 00:00:20]} fxe4 {[%clk 00:11:58]}
{[%emt 00:00:37]} 21. Bxe4 {[%clk 00:13:46]} {[%emt 00:00:06]} e6 {[%clk
00:11:37]} {[%emt 00:00:26]} 22. Bxd5 {[%clk 00:13:04]} {[%emt 00:00:47]} exd5
{[%clk 00:11:40]} {[%emt 00:00:02]} 23. Bxb4 {[%clk 00:13:07]} {[%emt
00:00:02]} Qd7 {[%clk 00:10:02]} {[%emt 00:01:43]} 24. Qd3 {[%clk 00:12:56]}
{[%emt 00:00:16]} d4 {[%clk 00:09:48]} {[%emt 00:00:19]} 25. Kg2 {[%clk
00:12:43]} {[%emt 00:00:18]} Qf7 {[%clk 00:09:27]} {[%emt 00:00:26]} 26. f4
{[%clk 00:12:21]} {[%emt 00:00:27]} Qd5+ {[%clk 00:09:15]} {[%emt 00:00:17]} 27.
Kh2 {[%clk 00:11:18]} {[%emt 00:01:07]} Rfe8 {[%clk 00:08:56]} {[%emt
00:00:20]} 28. Bd2 {[%clk 00:11:21]} {[%emt 00:00:02]} Qe4 {[%clk 00:08:49]}
{[%emt 00:00:17]} 29. Qb3+ {[%clk 00:10:38]} {[%emt 00:00:47]} Qe6 {[%clk
00:08:13]} {[%emt 00:00:42]} 30. Qxe6+ {[%clk 00:08:33]} {[%emt 00:02:10]} Rxe6
{[%clk 00:08:16]} {[%emt 00:00:01]} 31. Kg2 {[%clk 00:08:28]} {[%emt 00:00:11]}
Kf7 {[%clk 00:06:33]} {[%emt 00:01:48]} 32. Kf3 {[%clk 00:08:17]} {[%emt
00:00:15]} d3 {[%clk 00:06:15]} {[%emt 00:00:24]} 33. Rc1 {[%clk 00:08:07]}
{[%emt 00:00:15]} Re7 {[%clk 00:05:54]} {[%emt 00:00:25]} 34. b3 {[%clk
00:07:54]} {[%emt 00:00:18]} Bd4 {[%clk 00:05:14]} {[%emt 00:00:46]} 35. Rc4
{[%clk 00:07:47]} {[%emt 00:00:12]} Bf6 {[%clk 00:04:44]} {[%emt 00:00:35]} 36.
Bb4 {[%clk 00:07:28]} {[%emt 00:00:24]} c5 {[%clk 00:02:34]} {[%emt 00:02:15]}
37. Rxe7+ {[%clk 00:07:20]} {[%emt 00:00:14]} Kxe7 {[%clk 00:02:37]} {[%emt
00:00:01]} 38. Bd2 {[%clk 00:05:27]} {[%emt 00:01:58]} d5 {[%clk 00:02:36]}
{[%emt 00:00:06]} 39. Ra4 {[%clk 00:05:31]} {[%emt 00:00:01]} c4 {[%clk
00:02:31]} {[%emt 00:00:11]} 40. Bb4+ {[%clk 00:05:34]} {[%emt 00:00:01]} Ke6
{[%clk 00:02:24]} {[%emt 00:00:12]} 41. Ra6 {[%clk 00:05:35]} {[%emt 00:00:04]}
cxb3 {[%clk 00:02:00]} {[%emt 00:00:29]} 42. Rxb6+ {[%clk 00:05:38]} {[%emt
00:00:02]} Kf7 {[%clk 00:02:03]} {[%emt 00:00:01]} 43. Rb7+ {[%clk 00:05:18]}
{[%emt 00:00:26]} Kg8 {[%clk 00:02:07]} {[%emt 00:00:01]} 44. Ba3 {[%clk
00:05:16]} {[%emt 00:00:06]} b2 {[%clk 00:02:04]} {[%emt 00:00:08]} 45. Bxb2
{[%clk 00:05:20]} {[%emt 00:00:02]} Bxb2 {[%clk 00:02:07]} {[%emt 00:00:01]} 46.
Ke3 {[%clk 00:05:24]} {[%emt 00:00:02]} Bg7 {[%clk 00:02:01]} {[%emt 00:00:11]}
47. Rd7 {[%clk 00:05:23]} {[%emt 00:00:06]} d4+ {[%clk 00:02:03]} {[%emt
00:00:03]} 48. Kxd3 {[%clk 00:05:26]} {[%emt 00:00:02]} Rc3+ {[%clk 00:02:03]}
{[%emt 00:00:04]} 49. Kd2 {[%clk 00:05:23]} {[%emt 00:00:09]} Rxg3 {[%clk
00:02:00]} {[%emt 00:00:08]} 50. b6 {[%clk 00:05:26]} {[%emt 00:00:02]} Rb3
{[%clk 00:01:54]} {[%emt 00:00:10]} 51. b7 {[%clk 00:05:28]} {[%emt 00:00:04]}
Bf8 {[%clk 00:01:58]} {[%emt 00:00:02]} 52. Kc2 {[%clk 00:05:30]} {[%emt
00:00:03]} Rb6 {[%clk 00:01:54]} {[%emt 00:00:07]} 53. Kd3 {[%clk 00:05:33]}
{[%emt 00:00:02]} h6 {[%clk 00:01:40]} {[%emt 00:00:20]} 54. Kc4 {[%clk
00:05:37]} {[%emt 00:00:01]} d3 {[%clk 00:01:38]} {[%emt 00:00:08]} 55. Kxd3
{[%clk 00:05:40]} {[%emt 00:00:01]} Rd6+ {[%clk 00:01:41]} {[%emt 00:00:02]} 56.
Ke4 {[%clk 00:05:44]} {[%emt 00:00:02]} Rb6 {[%clk 00:01:42]} {[%emt 00:00:03]}
57. Kd5 {[%clk 00:05:46]} {[%emt 00:00:03]} Rb1 {[%clk 00:01:41]} {[%emt
00:00:06]} 58. Ke6 {[%clk 00:05:44]} {[%emt 00:00:08]} Rb6+ {[%clk 00:01:40]}
{[%emt 00:00:05]} 59. Kd5 {[%clk 00:05:48]} Rb1 {[%clk 00:01:33]} {[%emt
00:00:13]} 60. Ke6 {[%clk 00:05:52]} {[%emt 00:00:01]} Rb6+ {[%clk 00:01:34]}
{[%emt 00:00:03]} 61. Kd5 {[%clk 00:05:56]} Rb1 {[%clk 00:01:16]} {[%emt
00:00:25]} 1/2-1/2